[Event "Hungarian Rapid-ch 2022"]
[Site "Ajka"]
[Date "2022.07.15"]
[Round "2.15"]
[White "Bagi, Mate"]
[Black "Gombocz, Ferenc Jr."]
[Result "1-0"]
[ECO "A09"]
[WhiteElo "2460"]
[BlackElo "2229"]
[Annotator "ChessBase"]
[PlyCount "105"]
[EventDate "2022.07.15"]
[EventType "swiss"]
[EventCountry "HUN"]
[SourceTitle "playchess.com"]
[Source "ChessBase"]
[SourceQuality "1"]
[TimeControl "900+10"]

1. Nf3 {[%emt 0:00:14]} d5 {[%emt 0:00:13]} 2. c4 {[%emt 0:00:07]} d4 {[%emt 0:00:03]} 3. g3 {[%emt 0:00:12]} Nc6 {[%emt 0:00:05]} 4. Bg2 {[%emt 0:00:05]} e5 {[%emt 0:00:07]} 5. d3 {[%emt 0:00:17]} Nf6 {[%emt 0:00:41]} 6. O-O {[%emt 0:00:30]} a5 {[%emt 0:00:09]} 7. Na3 {[%emt 0:01:26]} Bc5 {[%emt 0:00:36]} 8. Nc2 {[%emt 0:00:35]} h6 {[%emt 0:01:47]} 9. e4 {[%emt 0:00:30]} dxe3 {[%emt 0:01:05]} 10. Bxe3 {[%emt 0:00:16]} Bxe3 {[%emt 0:00:36]} 11. fxe3 {[%emt 0:00:37]} Bg4 {[%emt 0:01:41]} 12. h3 {[%emt 0:02:20]} Bxf3 {[%emt 0:00:26]} 13. Rxf3 {[%emt 0:01:15]} e4 {[%emt 0:02:25]} 14. dxe4 {[%emt 0:00:23]} Qxd1+ {[%emt 0:00:03]} 15. Rxd1 {[%emt 0:00:03]} O-O {[%emt 0:00:13]} 16. Rf5 {[%emt 0:01:12]} Rfe8 {[%emt 0:00:24]} 17. Rb5 {[%emt 0:00:32]} Ra7 {[%emt 0:02:37]} 18. Nd4 {[%emt 0:02:11]} Nxe4 {[%emt 0:00:24]} 19. Bxe4 {[%emt 0:01:46]} Rxe4 {[%emt 0:00:05]} 20. Nxc6 {[%emt 0:00:06]} bxc6 {[%emt 0:00:04]} 21. Rb8+ {[%emt 0:00:16]} Kh7 {[%emt 0:00:05]} 22. Rd7 {[%emt 0:00:21]} Rxe3 {[%emt 0:01:47]} 23. Kf2 {[%emt 0:00:05]} Re4 {[%emt 0:00:06]} 24. c5 {[%emt 0:01:18]} Re5 {[%emt 0:00:44]} 25. Rxf7 {[%emt 0:00:03]} Rxc5 {[%emt 0:00:10]} 26. a4 {[%emt 0:00:14]} Rg5 {[%emt 0:00:41]} 27. h4 {[%emt 0:00:18]} Rg6 {[%emt 0:00:36]} 28. Re7 {[%emt 0:00:25]} Rf6+ {[%emt 0:01:19]} 29. Ke3 {[%emt 0:00:04]} c5 {[%emt 0:00:12]} 30. h5 {[%emt 0:00:30]} Raa6 {[%emt 0:00:03]} 31. Rxc7 {[%emt 0:00:25]} Rae6+ {[%emt 0:00:14]} 32. Kd3 {[%emt 0:00:20]} Rb6 {[%emt 0:00:25]} 33. Rxb6 {[%emt 0:00:37]} Rxb6 {[%emt 0:00:02]} 34. Kc3 {[%emt 0:00:15]} Rb4 {[%emt 0:00:17]} 35. b3 {[%emt 0:00:07]} Rg4 {[%emt 0:00:03]} 36. Rxc5 {[%emt 0:00:10]} Rxg3+ {[%emt 0:00:12]} 37. Kc4 {[%emt 0:00:03]} Rg4+ {[%emt 0:00:19]} 38. Kb5 {[%emt 0:00:16]} Rg5 {[%emt 0:00:04]} 39. b4 {[%emt 0:00:16]} axb4 {[%emt 0:00:03]} 40. Kxb4 {[%emt 0:00:09]} Rg1 {[%emt 0:00:06]} 41. a5 {[%emt 0:00:14]} Rb1+ {[%emt 0:00:22]} 42. Kc4 {[%emt 0:00:18]} Ra1 {[%emt 0:00:05]} 43. Kb5 {[%emt 0:00:01]} g5 {[%emt 0:00:20]} 44. hxg6+ {[%emt 0:00:38]} Kxg6 {[%emt 0:00:03]} 45. a6 {[%emt 0:00:01]} h5 {[%emt 0:00:24]} 46. Kb6 {[%emt 0:00:02]} h4 {[%emt 0:00:09]} 47. a7 {[%emt 0:00:24]} h3 {[%emt 0:00:13]} 48. Ra5 {[%emt 0:00:23]} Rb1+ {[%emt 0:00:08]} 49. Kc7 {[%emt 0:00:13]} h2 {[%emt 0:00:06]} 50. a8=Q {[%emt 0:00:06]} h1=Q {[%emt 0:00:04]} 51. Qg8+ {[%emt 0:00:05]} Kf6 {[%emt 0:00:19]} 52. Qg5+ {[%emt 0:00:09]} Kf7 {[%emt 0:00:11]} 53. Rf5+ {[%emt 0:00:05]} 1-0

[Event "Hungarian Rapid-ch 2022"]
[Site "Ajka"]
[Date "2022.07.15"]
[Round "2.16"]
[White "Nemeth, Zalan"]
[Black "Czebe, Attila"]
[Result "1-0"]
[ECO "A10"]
[WhiteElo "2194"]
[BlackElo "2385"]
[Annotator "ChessBase"]
[PlyCount "45"]
[EventDate "2022.07.15"]
[EventType "swiss"]
[EventCountry "HUN"]
[SourceTitle "playchess.com"]
[Source "ChessBase"]
[SourceQuality "1"]
[TimeControl "900+10"]

1. c4 {[%emt 0:00:11]} b6 {[%emt 0:00:14]} 2. Nc3 {[%emt 0:00:05]} Bb7 {[%emt 0:00:02]} 3. e4 {[%emt 0:00:01]} e6 {[%emt 0:00:01]} 4. Nge2 {[%emt 0:00:02]} Nf6 {[%emt 0:00:38]} 5. d3 {[%emt 0:00:05]} Be7 {[%emt 0:00:39]} 6. g3 {[%emt 0:00:04]} O-O {[%emt 0:00:04]} 7. Bg2 {[%emt 0:00:06]} c5 {[%emt 0:01:00]} 8. O-O {[%emt 0:00:04]} Nc6 {[%emt 0:00:01]} 9. h3 {[%emt 0:00:44]} a6 {[%emt 0:02:11]} 10. Be3 {[%emt 0:00:15]} d6 {[%emt 0:01:45]} 11. d4 {[%emt 0:00:53]} e5 {[%emt 0:00:12]} 12. dxe5 {[%emt 0:00:37]} dxe5 {[%emt 0:00:01]} 13. Nd5 {[%emt 0:00:25]} Nd4 {[%emt 0:00:23]} 14. Nec3 {[%emt 0:00:27]} Nxd5 {[%emt 0:00:16]} 15. Nxd5 {[%emt 0:00:07]} Bxd5 {[%emt 0:00:20]} 16. exd5 {[%emt 0:00:17]} Bd6 {[%emt 0:00:07]} 17. Bxd4 {[%emt 0:00:07]} cxd4 {[%emt 0:00:13]} 18. Kh1 {[%emt 0:01:23]} Qd7 {[%emt 0:00:09]} 19. f4 {[%emt 0:01:03]} exf4 {[%emt 0:00:56]} 20. gxf4 {[%emt 0:00:17]} Rae8 {[%emt 0:00:15]} 21. Qxd4 {[%emt 0:00:53]} Bc5 {[%emt 0:00:02]} 22. Qd2 {[%emt 0:00:33]} Re3 {[%emt 0:00:01]} 23. b4 {[%emt 0:01:15]} 1-0

[Event "Hungarian Rapid-ch 2022"]
[Site "Ajka"]
[Date "2022.07.15"]
[Round "2.17"]
[White "Korpa, Bence"]
[Black "Mihok-Juhasz, Barbara"]
[Result "1-0"]
[ECO "A45"]
[WhiteElo "2537"]
[BlackElo "2221"]
[Annotator "ChessBase"]
[PlyCount "137"]
[EventDate "2022.07.15"]
[EventType "swiss"]
[EventCountry "HUN"]
[SourceTitle "playchess.com"]
[Source "ChessBase"]
[SourceQuality "1"]
[TimeControl "900+10"]

1. d4 {[%emt 0:00:14]} Nf6 {[%emt 0:00:12]} 2. Nc3 {[%emt 0:00:03]} d5 {[%emt 0:00:03]} 3. Bf4 {[%emt 0:00:03]} g6 {[%emt 0:00:03]} 4. e3 {[%emt 0:00:06]} Bg7 {[%emt 0:00:03]} 5. Nb5 {[%emt 0:00:07]} Na6 {[%emt 0:00:04]} 6. h3 {[%emt 0:00:11]} c6 {[%emt 0:00:18]} 7. Nc3 {[%emt 0:00:03]} Nc7 {[%emt 0:00:02]} 8. Nf3 {[%emt 0:00:05]} O-O {[%emt 0:00:29]} 9. Bd3 {[%emt 0:00:12]} Ne6 {[%emt 0:00:21]} 10. Bh2 {[%emt 0:00:50]} c5 {[%emt 0:01:14]} 11. O-O {[%emt 0:00:08]} Bd7 {[%emt 0:00:18]} 12. a4 {[%emt 0:01:13]} Bc6 {[%emt 0:01:49]} 13. a5 {[%emt 0:02:24]} a6 {[%emt 0:01:49]} 14. Be5 {[%emt 0:01:57]} Rc8 {[%emt 0:01:44]} 15. Na4 {[%emt 0:01:53]} Bxa4 {[%emt 0:00:31]} 16. Rxa4 {[%emt 0:00:04]} Qd7 {[%emt 0:00:07]} 17. Ra3 {[%emt 0:00:14]} c4 {[%emt 0:01:00]} 18. Be2 {[%emt 0:00:05]} Ne4 {[%emt 0:00:58]} 19. Bh2 {[%emt 0:00:13]} f6 {[%emt 0:00:54]} 20. Nd2 {[%emt 0:00:25]} N6g5 {[%emt 0:00:49]} 21. Nxe4 {[%emt 0:01:14]} Nxe4 {[%emt 0:00:03]} 22. Qe1 {[%emt 0:00:08]} Nd6 {[%emt 0:00:49]} 23. Qb4 {[%emt 0:00:08]} Nb5 {[%emt 0:00:05]} 24. Raa1 {[%emt 0:00:07]} e6 {[%emt 0:00:23]} 25. c3 {[%emt 0:00:22]} Rfe8 {[%emt 0:00:04]} 26. Bf3 {[%emt 0:00:40]} Bf8 {[%emt 0:00:02]} 27. Qa4 {[%emt 0:00:01]} Qc6 {[%emt 0:00:29]} 28. Rfe1 {[%emt 0:00:09]} f5 {[%emt 0:00:16]} 29. g4 {[%emt 0:01:02]} Bd6 {[%emt 0:00:04]} 30. Bxd6 {[%emt 0:00:12]} Nxd6 {[%emt 0:00:59]} 31. Qxc6 {[%emt 0:00:46]} bxc6 {[%emt 0:00:01]} 32. Bd1 {[%emt 0:00:41]} Rb8 {[%emt 0:00:16]} 33. Re2 {[%emt 0:00:28]} Kf7 {[%emt 0:00:53]} 34. Ba4 {[%emt 0:00:11]} Nb5 {[%emt 0:00:36]} 35. Kg2 {[%emt 0:00:07]} e5 {[%emt 0:00:10]} 36. dxe5 {[%emt 0:00:12]} Rxe5 {[%emt 0:00:01]} 37. Kf3 {[%emt 0:00:46]} Kf6 {[%emt 0:00:03]} 38. Rg1 {[%emt 0:00:25]} fxg4+ {[%emt 0:00:28]} 39. hxg4 {[%emt 0:00:06]} h5 {[%emt 0:00:01]} 40. Rd2 {[%emt 0:01:32]} h4 {[%emt 0:00:06]} 41. Kg2 {[%emt 0:00:08]} g5 {[%emt 0:00:02]} 42. Rf1 {[%emt 0:00:15]} Re4 {[%emt 0:01:00]} 43. Kh3 {[%emt 0:00:15]} Ke7 {[%emt 0:00:19]} 44. Re2 {[%emt 0:00:10]} Rf8 {[%emt 0:00:09]} 45. Bc2 {[%emt 0:00:31]} Re5 {[%emt 0:00:02]} 46. Bd1 {[%emt 0:00:16]} Nd6 {[%emt 0:00:04]} 47. f4 {[%emt 0:00:05]} Re4 {[%emt 0:00:14]} 48. Kg2 {[%emt 0:00:38]} Rh8 {[%emt 0:01:24]} 49. Bc2 {[%emt 0:00:21]} h3+ {[%emt 0:00:36]} 50. Kh2 {[%emt 0:00:08]} Re6 {[%emt 0:00:06]} 51. Bf5 {[%emt 0:00:08]} Nxf5 {[%emt 0:00:24]} 52. gxf5 {[%emt 0:00:03]} Re4 {[%emt 0:00:00]} 53. fxg5 {[%emt 0:00:05]} Rg4 {[%emt 0:00:02]} 54. e4 dxe4 {[%emt 0:00:07]} 55. Rg1 {[%emt 0:01:00]} Rhh4 {[%emt 0:00:17]} 56. Rxg4 {[%emt 0:00:05]} Rxg4 {[%emt 0:00:01]} 57. Kxh3 {[%emt 0:00:09]} Rxg5 {[%emt 0:00:01]} 58. Rxe4+ {[%emt 0:00:02]} Kd6 {[%emt 0:00:02]} 59. Rd4+ {[%emt 0:00:07]} Ke5 {[%emt 0:00:32]} 60. Rxc4 {[%emt 0:00:02]} Kd5 {[%emt 0:00:01]} 61. Rf4 {[%emt 0:00:27]} Ke5 {[%emt 0:00:01]} 62. Rb4 {[%emt 0:00:11]} Rxf5 {[%emt 0:00:30]} 63. Rb6 {[%emt 0:00:06]} Kd5 {[%emt 0:00:30]} 64. Rxa6 {[%emt 0:00:08]} Rf1 {[%emt 0:00:12]} 65. Kg3 {[%emt 0:00:33]} c5 {[%emt 0:00:18]} 66. Ra8 {[%emt 0:00:17]} Ra1 {[%emt 0:00:06]} 67. a6 {[%emt 0:00:04]} Kc6 {[%emt 0:00:15]} 68. Kf4 {[%emt 0:00:03]} Ra2 {[%emt 0:00:12]} 69. Ke4 {[%emt 0:00:15]} 1-0

[Event "Hungarian Rapid-ch 2022"]
[Site "Ajka"]
[Date "2022.07.15"]
[Round "2.18"]
[White "Gelle, Istvan"]
[Black "Meszaros, Tamas"]
[Result "1-0"]
[ECO "A45"]
[WhiteElo "2218"]
[BlackElo "2368"]
[Annotator "ChessBase"]
[PlyCount "89"]
[EventDate "2022.07.15"]
[EventType "swiss"]
[EventCountry "HUN"]
[SourceTitle "playchess.com"]
[Source "ChessBase"]
[SourceQuality "1"]
[TimeControl "900+10"]

1. d4 {[%emt 0:00:12]} Nf6 {[%emt 0:00:13]} 2. Bf4 {[%emt 0:00:02]} e6 {[%emt 0:00:03]} 3. e3 {[%emt 0:00:02]} b6 {[%emt 0:00:09]} 4. Nf3 {[%emt 0:00:03]} Bb7 {[%emt 0:00:01]} 5. Be2 {[%emt 0:00:02]} Be7 {[%emt 0:00:07]} 6. h3 {[%emt 0:00:02]} c5 {[%emt 0:00:03]} 7. O-O {[%emt 0:00:11]} O-O {[%emt 0:00:05]} 8. a4 {[%emt 0:00:12]} cxd4 {[%emt 0:00:44]} 9. exd4 {[%emt 0:00:02]} a6 {[%emt 0:01:22]} 10. Nbd2 {[%emt 0:00:22]} d6 {[%emt 0:00:34]} 11. Re1 {[%emt 0:00:19]} Nbd7 {[%emt 0:00:04]} 12. Bh2 {[%emt 0:00:17]} Re8 {[%emt 0:00:04]} 13. Bf1 {[%emt 0:01:00]} Bf8 {[%emt 0:00:02]} 14. Nc4 {[%emt 0:02:15]} Qc7 {[%emt 0:00:18]} 15. Ne3 {[%emt 0:00:46]} Rad8 {[%emt 0:01:41]} 16. c4 {[%emt 0:01:08]} e5 {[%emt 0:04:36]} 17. b4 {[%emt 0:03:05]} a5 {[%emt 0:02:39]} 18. bxa5 {[%emt 0:02:52]} bxa5 {[%emt 0:00:01]} 19. Rb1 {[%emt 0:01:52]} Be4 {[%emt 0:01:27]} 20. Rb2 {[%emt 0:00:55]} Bxf3 {[%emt 0:00:49]} 21. gxf3 {[%emt 0:00:04]} exd4 {[%emt 0:00:19]} 22. Qxd4 {[%emt 0:00:02]} Qc6 {[%emt 0:00:23]} 23. Rb5 {[%emt 0:00:20]} Ne5 {[%emt 0:01:00]} 24. Bxe5 {[%emt 0:00:35]} dxe5 {[%emt 0:00:01]} 25. Qh4 {[%emt 0:00:01]} Bb4 {[%emt 0:00:15]} 26. Rb1 {[%emt 0:00:41]} Qxf3 {[%emt 0:00:45]} 27. Bg2 {[%emt 0:00:24]} Qe2 {[%emt 0:00:11]} 28. Qg3 {[%emt 0:00:57]} e4 {[%emt 0:00:58]} 29. c5 {[%emt 0:00:17]} Qa2 {[%emt 0:00:08]} 30. R1xb4 {[%emt 0:00:16]} axb4 {[%emt 0:00:04]} 31. Rxb4 {[%emt 0:00:00]} Qa3 {[%emt 0:00:09]} 32. Rc4 {[%emt 0:00:09]} Nd5 {[%emt 0:00:51]} 33. Nxd5 {[%emt 0:00:19]} Qa1+ {[%emt 0:00:05]} 34. Kh2 {[%emt 0:00:01]} Rxd5 {[%emt 0:00:01]} 35. c6 {[%emt 0:00:11]} Qa2 {[%emt 0:00:33]} 36. Rxe4 {[%emt 0:00:14]} Rdd8 {[%emt 0:00:09]} 37. c7 {[%emt 0:00:03]} Rc8 {[%emt 0:00:10]} 38. Rxe8+ {[%emt 0:00:05]} Rxe8 {[%emt 0:00:01]} 39. Bc6 {[%emt 0:00:27]} Rf8 {[%emt 0:00:15]} 40. Bd7 {[%emt 0:00:03]} Qc4 {[%emt 0:00:09]} 41. a5 {[%emt 0:00:05]} g6 {[%emt 0:00:11]} 42. Qd6 {[%emt 0:00:04]} Qe2 {[%emt 0:00:17]} 43. Qxf8+ {[%emt 0:00:05]} Kxf8 {[%emt 0:00:01]} 44. c8=Q+ {[%emt 0:00:02]} Kg7 {[%emt 0:00:01]} 45. Qc5 {[%emt 0:00:06]} 1-0

[Event "Hungarian Rapid-ch 2022"]
[Site "Ajka"]
[Date "2022.07.15"]
[Round "2.19"]
[White "Csonka, Balazs"]
[Black "Jonas, Zsolt"]
[Result "1-0"]
[ECO "B90"]
[WhiteElo "2495"]
[BlackElo "2031"]
[Annotator "ChessBase"]
[PlyCount "57"]
[EventDate "2022.07.15"]
[EventType "swiss"]
[EventCountry "HUN"]
[SourceTitle "playchess.com"]
[Source "ChessBase"]
[SourceQuality "1"]
[TimeControl "900+10"]

1. e4 {[%emt 0:00:13]} c5 {[%emt 0:00:11]} 2. Nf3 {[%emt 0:00:04]} d6 {[%emt 0:00:02]} 3. d4 {[%emt 0:00:10]} cxd4 {[%emt 0:00:01]} 4. Nxd4 {[%emt 0:00:02]} Nf6 {[%emt 0:00:02]} 5. Nc3 {[%emt 0:00:02]} a6 {[%emt 0:00:00]} 6. Be3 {[%emt 0:00:19]} e6 {[%emt 0:00:02]} 7. f3 {[%emt 0:00:17]} Qc7 {[%emt 0:00:02]} 8. g4 {[%emt 0:00:49]} b5 {[%emt 0:00:04]} 9. Qd2 {[%emt 0:01:07]} Bb7 {[%emt 0:00:19]} 10. O-O-O {[%emt 0:00:47]} b4 {[%emt 0:00:17]} 11. Nce2 {[%emt 0:00:16]} d5 {[%emt 0:00:06]} 12. e5 {[%emt 0:00:24]} Nfd7 {[%emt 0:00:04]} 13. f4 {[%emt 0:00:10]} Nc6 {[%emt 0:00:15]} 14. Nxc6 {[%emt 0:00:59]} Bxc6 {[%emt 0:00:03]} 15. Nd4 {[%emt 0:00:02]} Nc5 {[%emt 0:00:25]} 16. Bg2 {[%emt 0:03:21]} a5 {[%emt 0:04:18]} 17. Kb1 {[%emt 0:00:38]} a4 {[%emt 0:00:02]} 18. f5 {[%emt 0:02:40]} Be7 {[%emt 0:02:36]} 19. Rhf1 {[%emt 0:00:38]} Bd7 {[%emt 0:06:07]} 20. Bf4 {[%emt 0:03:31]} Rb8 {[%emt 0:00:38]} 21. Bg5 {[%emt 0:00:38]} Qd8 {[%emt 0:00:41]} 22. f6 {[%emt 0:00:44]} gxf6 {[%emt 0:00:10]} 23. exf6 {[%emt 0:00:02]} Bd6 {[%emt 0:00:11]} 24. Nf5 {[%emt 0:00:23]} exf5 {[%emt 0:01:21]} 25. Qxd5 {[%emt 0:00:07]} Be6 {[%emt 0:00:03]} 26. Qc6+ {[%emt 0:00:19]} Qd7 {[%emt 0:00:09]} 27. Rxd6 {[%emt 0:00:06]} Qxc6 {[%emt 0:00:07]} 28. Bxc6+ {[%emt 0:00:04]} Nd7 {[%emt 0:00:30]} 29. gxf5 {[%emt 0:00:08]} 1-0

[Event "Hungarian Rapid-ch 2022"]
[Site "Ajka"]
[Date "2022.07.15"]
[Round "2.20"]
[White "Papp, Bence"]
[Black "Jakab, Attila"]
[Result "1-0"]
[ECO "A45"]
[WhiteElo "2244"]
[BlackElo "2311"]
[Annotator "ChessBase"]
[PlyCount "51"]
[EventDate "2022.07.15"]
[EventType "swiss"]
[EventCountry "HUN"]
[SourceTitle "playchess.com"]
[Source "ChessBase"]
[SourceQuality "1"]
[TimeControl "900+10"]

1. d4 {[%emt 0:00:12]} Nf6 {[%emt 0:00:14]} 2. Bf4 {[%emt 0:00:02]} d6 {[%emt 0:00:10]} 3. Nc3 {[%emt 0:00:04]} Nbd7 {[%emt 0:00:11]} 4. Nf3 {[%emt 0:00:39]} g6 {[%emt 0:00:14]} 5. e4 {[%emt 0:00:02]} Bg7 {[%emt 0:00:03]} 6. Qd2 {[%emt 0:00:03]} c6 {[%emt 0:00:05]} 7. Bh6 {[%emt 0:00:07]} Bxh6 {[%emt 0:00:19]} 8. Qxh6 {[%emt 0:00:02]} e5 {[%emt 0:00:06]} 9. dxe5 {[%emt 0:00:26]} dxe5 {[%emt 0:00:03]} 10. O-O-O {[%emt 0:00:03]} Qe7 {[%emt 0:00:02]} 11. h3 {[%emt 0:00:45]} b5 {[%emt 0:00:47]} 12. Bxb5 {[%emt 0:01:14]} cxb5 {[%emt 0:01:15]} 13. Nxb5 {[%emt 0:00:01]} Rb8 {[%emt 0:00:07]} 14. Nd6+ {[%emt 0:00:01]} Kd8 {[%emt 0:00:01]} 15. Nxe5 {[%emt 0:00:01]} Kc7 {[%emt 0:00:36]} 16. Nexf7 {[%emt 0:00:25]} Rf8 {[%emt 0:03:39]} 17. Qf4 {[%emt 0:00:02]} Rxf7 {[%emt 0:00:02]} 18. Nxf7+ {[%emt 0:00:14]} Kb7 {[%emt 0:00:02]} 19. Nd6+ {[%emt 0:00:15]} Ka8 {[%emt 0:00:03]} 20. Rhe1 {[%emt 0:02:01]} Ne5 {[%emt 0:00:14]} 21. Qg5 {[%emt 0:01:03]} Ba6 {[%emt 0:00:15]} 22. Re3 {[%emt 0:02:15]} Rb6 {[%emt 0:00:39]} 23. f4 {[%emt 0:00:23]} Nd3+ {[%emt 0:00:33]} 24. Rexd3 {[%emt 0:00:14]} Bxd3 {[%emt 0:00:15]} 25. Rxd3 {[%emt 0:02:09]} Rxd6 {[%emt 0:00:05]} 26. Qc5 {[%emt 0:00:06]} 1-0

[Event "Hungarian Rapid-ch 2022"]
[Site "Ajka"]
[Date "2022.07.15"]
[Round "2.21"]
[White "Lizak, Peter"]
[Black "Tancsa, Tamas"]
[Result "1/2-1/2"]
[ECO "A45"]
[WhiteElo "2400"]
[BlackElo "2103"]
[Annotator "ChessBase"]
[PlyCount "109"]
[EventDate "2022.07.15"]
[EventType "swiss"]
[EventCountry "HUN"]
[SourceTitle "playchess.com"]
[Source "ChessBase"]
[SourceQuality "1"]
[TimeControl "900+10"]

1. d4 {[%emt 0:00:12]} Nf6 {[%emt 0:00:12]} 2. Nc3 {[%emt 0:00:01]} d5 {[%emt 0:00:01]} 3. Bf4 {[%emt 0:00:02]} g6 {[%emt 0:00:05]} 4. e3 {[%emt 0:00:19]} Bg7 {[%emt 0:00:28]} 5. h4 {[%emt 0:00:03]} h6 {[%emt 0:00:46]} 6. Nf3 {[%emt 0:00:16]} O-O {[%emt 0:00:20]} 7. Ne5 {[%emt 0:00:09]} c5 {[%emt 0:02:21]} 8. Qd2 {[%emt 0:01:00]} Nc6 {[%emt 0:00:26]} 9. f3 {[%emt 0:01:08]} Nh5 {[%emt 0:02:48]} 10. Bh2 {[%emt 0:00:54]} e6 {[%emt 0:00:07]} 11. O-O-O {[%emt 0:00:40]} Nf6 {[%emt 0:05:24]} 12. g4 {[%emt 0:00:17]} Nd7 {[%emt 0:00:43]} 13. f4 {[%emt 0:00:39]} Ndxe5 {[%emt 0:01:29]} 14. dxe5 {[%emt 0:01:06]} d4 {[%emt 0:00:06]} 15. exd4 {[%emt 0:07:17]} cxd4 {[%emt 0:00:02]} 16. Ne4 {[%emt 0:00:02]} Qd5 {[%emt 0:00:08]} 17. Qd3 {[%emt 0:00:31]} Qxa2 {[%emt 0:00:28]} 18. Qa3 {[%emt 0:00:01]} Qxa3 {[%emt 0:01:15]} 19. bxa3 {[%emt 0:00:01]} Rd8 {[%emt 0:00:01]} 20. Bg2 {[%emt 0:00:10]} Bf8 {[%emt 0:00:05]} 21. Kb2 {[%emt 0:00:06]} Na5 {[%emt 0:00:17]} 22. Bf1 {[%emt 0:00:22]} b6 {[%emt 0:00:29]} 23. Nf6+ {[%emt 0:00:03]} Kg7 {[%emt 0:00:01]} 24. h5 {[%emt 0:00:26]} Bb7 {[%emt 0:00:06]} 25. Rg1 {[%emt 0:00:06]} Rac8 {[%emt 0:00:27]} 26. hxg6 {[%emt 0:00:13]} fxg6 {[%emt 0:00:06]} 27. f5 {[%emt 0:00:33]} Rc3 {[%emt 0:00:04]} 28. Rxd4 {[%emt 0:00:24]} Rxd4 {[%emt 0:00:19]} 29. Kxc3 {[%emt 0:00:01]} Ra4 {[%emt 0:00:01]} 30. Bd3 {[%emt 0:00:26]} Bc5 {[%emt 0:00:14]} 31. fxg6 {[%emt 0:01:07]} Bxg1 {[%emt 0:00:10]} 32. Nh5+ {[%emt 0:00:27]} Kg8 {[%emt 0:00:04]} 33. Bxg1 {[%emt 0:00:04]} Nc6 {[%emt 0:00:01]} 34. Nf6+ {[%emt 0:00:29]} Kg7 {[%emt 0:00:02]} 35. Nh5+ {[%emt 0:00:10]} Kg8 {[%emt 0:00:01]} 36. Bh2 {[%emt 0:00:28]} Rxa3+ {[%emt 0:00:37]} 37. Kd2 {[%emt 0:00:06]} Ne7 {[%emt 0:00:14]} 38. Nf6+ {[%emt 0:00:17]} Kg7 {[%emt 0:00:12]} 39. Nh5+ {[%emt 0:00:23]} Kg8 {[%emt 0:00:05]} 40. Nf6+ {[%emt 0:00:11]} Kh8 {[%emt 0:00:07]} 41. Bf4 {[%emt 0:00:31]} Rxd3+ {[%emt 0:00:03]} 42. cxd3 {[%emt 0:00:02]} Nxg6 {[%emt 0:00:01]} 43. Bg3 {[%emt 0:00:01]} Bc6 {[%emt 0:00:07]} 44. d4 {[%emt 0:00:04]} Ne7 {[%emt 0:00:01]} 45. Bf4 {[%emt 0:00:03]} Kg7 {[%emt 0:00:01]} 46. g5 {[%emt 0:00:11]} hxg5 {[%emt 0:00:14]} 47. Bxg5 {[%emt 0:00:01]} Kg6 {[%emt 0:00:02]} 48. Bh4 {[%emt 0:00:09]} a5 {[%emt 0:00:23]} 49. Kc2 {[%emt 0:00:09]} Nf5 {[%emt 0:00:02]} 50. Bf2 {[%emt 0:00:02]} Kg5 {[%emt 0:00:01]} 51. d5 {[%emt 0:00:05]} exd5 {[%emt 0:00:07]} 52. Bxb6 {[%emt 0:00:03]} a4 {[%emt 0:00:02]} 53. Kc3 {[%emt 0:00:15]} Ng7 {[%emt 0:00:18]} 54. Kb4 {[%emt 0:00:28]} Ne6 {[%emt 0:00:02]} 55. Nxd5 {[%emt 0:00:09]} 1/2-1/2

[Event "Hungarian Rapid-ch 2022"]
[Site "Ajka"]
[Date "2022.07.15"]
[Round "2.22"]
[White "Csiszar, Csaba"]
[Black "Gaal, Zsoka"]
[Result "1-0"]
[ECO "A48"]
[WhiteElo "2389"]
[BlackElo "2313"]
[Annotator "ChessBase"]
[PlyCount "75"]
[EventDate "2022.07.15"]
[EventType "swiss"]
[EventCountry "HUN"]
[SourceTitle "playchess.com"]
[Source "ChessBase"]
[SourceQuality "1"]
[TimeControl "900+10"]

1. d4 {[%emt 0:00:13]} Nf6 {[%emt 0:00:41]} 2. Nf3 {[%emt 0:00:14]} g6 {[%emt 0:00:07]} 3. c4 {[%emt 0:00:02]} Bg7 {[%emt 0:00:02]} 4. Nc3 {[%emt 0:00:01]} O-O {[%emt 0:00:04]} 5. Bf4 {[%emt 0:00:02]} d6 {[%emt 0:00:29]} 6. e3 {[%emt 0:00:02]} Nfd7 {[%emt 0:00:34]} 7. Be2 {[%emt 0:00:10]} e5 {[%emt 0:00:20]} 8. Bg5 {[%emt 0:00:02]} f6 {[%emt 0:01:20]} 9. Bh4 {[%emt 0:00:02]} Nc6 {[%emt 0:01:17]} 10. h3 {[%emt 0:00:33]} Ne7 {[%emt 0:01:01]} 11. e4 {[%emt 0:00:06]} Kh8 {[%emt 0:00:51]} 12. O-O {[%emt 0:00:08]} g5 {[%emt 0:01:19]} 13. Bg3 {[%emt 0:00:01]} Ng6 {[%emt 0:00:05]} 14. Re1 {[%emt 0:00:07]} Nf4 {[%emt 0:00:51]} 15. Bf1 {[%emt 0:00:22]} Rg8 {[%emt 0:01:29]} 16. Nd5 {[%emt 0:00:24]} Nf8 {[%emt 0:00:11]} 17. Ne3 {[%emt 0:00:11]} N8g6 {[%emt 0:00:27]} 18. Qc2 {[%emt 0:00:47]} Be6 {[%emt 0:00:08]} 19. Rad1 {[%emt 0:00:09]} Qe7 {[%emt 0:00:52]} 20. d5 {[%emt 0:00:57]} Bd7 {[%emt 0:00:06]} 21. Nf5 {[%emt 0:00:02]} Qf7 {[%emt 0:00:39]} 22. c5 {[%emt 0:00:08]} Bxf5 {[%emt 0:00:29]} 23. exf5 {[%emt 0:00:02]} Ne7 {[%emt 0:00:01]} 24. Bh2 {[%emt 0:01:16]} Bh6 {[%emt 0:01:04]} 25. g4 {[%emt 0:00:52]} Bf8 {[%emt 0:00:13]} 26. cxd6 {[%emt 0:02:09]} cxd6 {[%emt 0:00:02]} 27. Qc7 {[%emt 0:00:51]} Nfxd5 {[%emt 0:01:56]} 28. Qxb7 {[%emt 0:00:01]} Nb6 {[%emt 0:00:30]} 29. Rxd6 {[%emt 0:00:25]} Bg7 {[%emt 0:00:12]} 30. Re6 {[%emt 0:00:48]} Rge8 {[%emt 0:00:15]} 31. Nxe5 {[%emt 0:00:36]} fxe5 {[%emt 0:00:48]} 32. Bxe5 {[%emt 0:00:06]} Nbd5 {[%emt 0:01:04]} 33. Bc4 {[%emt 0:00:20]} Bxe5 {[%emt 0:00:23]} 34. R1xe5 {[%emt 0:00:01]} Rab8 {[%emt 0:00:18]} 35. Qxa7 {[%emt 0:00:20]} Ra8 {[%emt 0:00:07]} 36. Qd4 {[%emt 0:00:15]} Rad8 {[%emt 0:00:28]} 37. Rxd5+ {[%emt 0:00:18]} Kg8 {[%emt 0:00:03]} 38. Rxd8 {[%emt 0:00:03]} 1-0

[Event "Hungarian Rapid-ch 2022"]
[Site "Ajka"]
[Date "2022.07.15"]
[Round "2.23"]
[White "Slezak, Robert"]
[Black "Papp, Levente"]
[Result "0-1"]
[ECO "C04"]
[WhiteElo "2068"]
[BlackElo "2394"]
[Annotator "ChessBase"]
[PlyCount "30"]
[EventDate "2022.07.15"]
[EventType "swiss"]
[EventCountry "HUN"]
[SourceTitle "playchess.com"]
[Source "ChessBase"]
[SourceQuality "1"]
[TimeControl "900+10"]

1. e4 {[%emt 0:00:12]} e6 {[%emt 0:00:14]} 2. d4 {[%emt 0:00:02]} d5 {[%emt 0:00:02]} 3. Nd2 {[%emt 0:00:01]} Nc6 {[%emt 0:00:17]} 4. Ngf3 {[%emt 0:00:09]} Nf6 {[%emt 0:00:02]} 5. e5 {[%emt 0:00:03]} Nd7 {[%emt 0:00:02]} 6. c3 {[%emt 0:01:08]} f6 {[%emt 0:00:04]} 7. exf6 {[%emt 0:00:07]} Qxf6 {[%emt 0:00:02]} 8. Bd3 {[%emt 0:00:04]} Bd6 {[%emt 0:00:15]} 9. O-O {[%emt 0:00:40]} O-O {[%emt 0:00:09]} 10. h3 {[%emt 0:02:16]} e5 {[%emt 0:00:14]} 11. dxe5 {[%emt 0:00:03]} Ndxe5 {[%emt 0:00:10]} 12. Be2 {[%emt 0:01:19]} Ne7 {[%emt 0:01:19]} 13. Nxe5 {[%emt 0:00:23]} Qxe5 {[%emt 0:00:03]} 14. Nf3 {[%emt 0:00:02]} Rxf3 {[%emt 0:00:02]} 15. g3 {[%emt 0:00:28]} Rxg3+ {[%emt 0:00:03]} 0-1